fUSD/lending_fUSD_20250804
["ID","MTS","AMOUNT","RATE_DAILY","PERIOD"]
[377184704,1754268731791,-881.26,0.00050958,120]
[377184705,1754268731806,-853.22,0.00050958,120]
[377184706,1754268731821,-1010.93,0.00050958,120]
[377184707,1754268731837,-400.0,0.00050958,120]
[377184708,1754268731852,-652.92,0.00050958,120]
[377184709,1754268731867,-447.52,0.00050958,120]
[377184710,1754268731883,-1008.77,0.00050958,120]
[377184711,1754268731898,-400.0,0.00050958,120]
[377184712,1754268731913,-1051.17,0.00050958,120]
[377184713,1754268731929,-285.60588303,0.00050958,120]
[377184714,1754268731943,-1093.28,0.00050958,120]
[377184715,1754268731957,-161.35807747,0.00050958,120]
[377184716,1754268731972,-1544.86,0.00050958,120]
[377184717,1754268731990,-702.82,0.00050958,120]
[377184718,1754268732004,-544.8,0.00050958,120]
[377184719,1754268732020,-400.0,0.00050958,120]
[377184720,1754268732041,-400.0,0.00050958,120]
[377184721,1754268732055,-552.48,0.00050958,120]
[377184722,1754268732072,-400.0,0.00050958,120]
[377184723,1754268732088,-1553.31,0.00050958,120]
[377184724,1754268732103,-1124.67,0.00050958,120]
[377184725,1754268732118,-472.68570947,0.00050958,120]
[377184726,1754268732133,-278.52844364,0.00050958,120]
[377184727,1754268732148,-798.23,0.00050958,120]
[377184728,1754268732163,-400.0,0.00050958,120]
[377184729,1754268732179,-608.06,0.00050958,120]
[377184730,1754268732195,-1527.9,0.00050958,120]
[377184731,1754268732210,-400.0,0.00050958,120]
[377184732,1754268732226,-400.0,0.00050958,120]
[377184733,1754268732240,-947.85,0.00050958,120]
[377184734,1754268732254,-400.0,0.00050958,120]
[377184735,1754268732268,-981.29,0.00050958,120]
[377184736,1754268732283,-400.0,0.00050958,120]
[377184737,1754268732298,-400.0,0.00050958,120]
[377184738,1754268732311,-987.27,0.00050958,120]
[377184739,1754268732326,-400.0,0.00050958,120]
[377184740,1754268732341,-520.59,0.00050958,120]
[377184741,1754268732355,-749.39,0.00050958,120]
[377184742,1754268732370,-400.0,0.00050958,120]
[377184743,1754268732385,-977.04,0.00050958,120]
[377184744,1754268732399,-1111.61,0.00050958,120]
[377184745,1754268732413,-400.0,0.00050958,120]
[377184746,1754268732428,-400.0,0.00050958,120]
[377184747,1754268732444,-400.0,0.00050958,120]
[377184748,1754268732459,-400.0,0.00050958,120]
[377184749,1754268732474,-858.32,0.00050958,120]
[377184750,1754268732488,-400.0,0.00050958,120]
[377184751,1754268732503,-524.03,0.00050958,120]
[377184752,1754268732518,-400.0,0.00050958,120]
[377184753,1754268732533,-400.0,0.00050958,120]
[377184754,1754268732549,-1637.94,0.00050958,120]
[377184755,1754268732564,-637.78,0.00050958,120]
[377184756,1754268732578,-1658.43,0.00050958,120]
[377184757,1754268732593,-400.0,0.00050958,120]
[377184758,1754268732608,-400.0,0.00050958,120]
[377184759,1754268732623,-400.0,0.00050958,120]
[377184760,1754268732645,-400.0,0.00050958,120]
[377184761,1754268732659,-400.0,0.00050958,120]
[377184762,1754268732674,-483.41,0.00050958,120]
[377184763,1754268732689,-598.15,0.00050958,120]
[377184764,1754268732709,-173.740082,0.00050958,120]
[377184765,1754268732724,-4463.09,0.00050958,120]
[377184766,1754268732738,-400.0,0.00050958,120]
[377184767,1754268732752,-400.0,0.00050958,120]
[377184768,1754268732767,-1021.73,0.00050958,120]
[377184769,1754268732782,-400.0,0.00050958,120]
[377184770,1754268732797,-400.0,0.00050958,120]
[377184771,1754268732811,-754.89,0.00050958,120]
[377184772,1754268732833,-400.0,0.00050958,120]
[377184773,1754268732855,-588.48,0.00050958,120]
[377184774,1754268732875,-2668.08,0.00050958,120]
[377184775,1754268732899,-1209.71,0.00050958,120]
[377184776,1754268732917,-1584.6,0.00050958,120]
[377184777,1754268732936,-400.0,0.00050958,120]
[377184778,1754268732953,-1362.53,0.00050958,120]
[377184779,1754268732971,-400.0,0.00050958,120]
[377184780,1754268732989,-1522.49,0.00050958,120]
[377184781,1754268733005,-647.61,0.00050958,120]
[377184782,1754268733022,-801.6,0.00050958,120]
[377184783,1754268733039,-400.0,0.00050958,120]
[377184784,1754268733055,-1682.47,0.00050958,120]
[377184785,1754268733072,-400.0,0.00050958,120]
[377184786,1754268733089,-2375.94,0.00050958,120]
[377184787,1754268733105,-856.16,0.00050958,120]
[377184788,1754268733124,-1150.07,0.00050958,120]
[377184789,1754268733141,-1014.08,0.00050958,120]
[377184790,1754268733157,-510.40941375,0.00050958,120]
[377184791,1754268733172,-400.0,0.00050958,120]
[377184792,1754268733189,-604.67,0.00050958,120]
[377184793,1754268733204,-400.0,0.00050958,120]
[377184794,1754268733220,-1262.21,0.00050958,120]
[377184795,1754268733514,-776.57,0.00050958,120]
[377184796,1754268733533,-496.71,0.00050958,120]
[377184797,1754268733543,-633.78,0.00050958,120]
[377184798,1754268733553,-400.0,0.00050958,120]
[377184799,1754268733563,-3407.72,0.00050958,120]
[377184800,1754268733571,-1700.65,0.00050958,120]
[377184801,1754268733581,-400.0,0.00050958,120]
[377184802,1754268733590,-400.0,0.00050958,120]
[377184803,1754268733599,-860.5,0.00050958,120]
[377184804,1754268733609,-400.0,0.00050958,120]
[377184805,1754268733618,-400.0,0.00050958,120]
[377184806,1754268733628,-400.0,0.00050958,120]
[377184807,1754268733640,-5122.26,0.00050958,118]
[377184808,1754268733649,-249.76708886,0.00050958,120]
[377184809,1754268733659,-400.0,0.00050958,120]
[377184810,1754268733669,-365.16561989,0.00050958,120]
[377184811,1754268733678,-400.0,0.00050958,120]
[377184812,1754268733687,-400.0,0.00050958,120]
[377184813,1754268733699,-400.0,0.00050958,120]
[377184814,1754268733708,-400.0,0.00050958,120]
[377184815,1754268733718,-400.0,0.00050958,120]
[377184816,1754268733728,-400.0,0.00050958,120]
[377184817,1754268733738,-400.0,0.00050958,120]
[377184818,1754268733748,-2275.99,0.00050958,120]
[377184819,1754268733757,-400.0,0.00050958,120]
[377184820,1754268733767,-463.4297876,0.00050958,120]
[377184821,1754268733777,-154.24672456,0.00050958,120]
[377184822,1754268733788,-400.0,0.00050958,120]
[377184823,1754268733797,-400.0,0.00050958,120]
[377184824,1754268733807,-747.61,0.00050958,120]
[377184825,1754268733816,-6663.96,0.00050958,120]
[377184826,1754268733825,-325.75734381,0.00050958,120]
[377184827,1754268733836,-504.1,0.00050958,120]
[377184828,1754268733846,-151.0,0.00050958,120]
[377184829,1754268733856,-400.0,0.00050958,120]
[377184830,1754268733865,-400.0,0.00050958,120]
[377184831,1754268733876,-422.64,0.00050958,120]
[377184832,1754268733886,-400.0,0.00050958,120]
[377184833,1754268733895,-151.0,0.00050958,120]
[377184834,1754268733905,-759.38,0.00050958,120]
[377184835,1754268733915,-400.0,0.00050958,120]
[377184836,1754268733924,-400.0,0.00050958,120]
[377184837,1754268733934,-1263.16,0.00050958,120]
[377184838,1754268733944,-1400.47,0.00050958,120]
[377184839,1754268733953,-1244.75,0.00050958,120]
[377184840,1754268733963,-965.49,0.00050958,120]
[377184841,1754268733972,-1286.36,0.00050958,120]
[377184842,1754268733982,-400.0,0.00050958,120]
[377184843,1754268733992,-357.96548603,0.00050958,120]
[377184844,1754268734002,-400.0,0.00050958,120]
[377184845,1754268734012,-911.39,0.00050958,120]
[377184846,1754268734022,-151.0,0.00050958,120]
[377184847,1754268734032,-151.0,0.00050958,120]
[377184848,1754268734042,-400.0,0.00050958,120]
[377184849,1754268734051,-942.83,0.00050958,120]
[377184850,1754268734060,-400.0,0.00050958,120]
[377184851,1754268734070,-89208.25,0.00050958,120]
[377184852,1754268734080,-151.0,0.00050958,120]
[377184853,1754268734089,-842.57,0.00050958,120]
[377184854,1754268734099,-400.0,0.00050958,120]
[377184855,1754268734108,-400.0,0.00050958,120]
[377184856,1754268734118,-1359.66,0.00050958,120]
[377184857,1754268734127,-400.0,0.00050958,120]
[377184858,1754268734140,-539.01444203,0.00050958,120]
[377184859,1754268734150,-899.08,0.00050958,120]
[377184860,1754268734159,-1253.81,0.00050958,120]
[377184861,1754268734168,-1413.4,0.00050958,120]
[377184862,1754268734178,-400.0,0.00050958,120]
[377184863,1754268734187,-852.42,0.00050958,120]
[377184864,1754268734197,-400.0,0.00050958,120]
[377184865,1754268734206,-643.48,0.00050958,120]
[377184866,1754268734215,-469.57,0.00050958,120]
[377184867,1754268734225,-498.37,0.00050958,120]
[377184868,1754268734233,-480.76,0.00050958,120]
[377184869,1754268734243,-400.0,0.00050958,120]
[377184870,1754268734251,-1333.92,0.00050958,120]
[377184871,1754268734261,-1637.38,0.00050958,120]
[377184872,1754268734270,-400.18,0.00050958,120]
[377184873,1754268734279,-203.97244082,0.00050958,120]
[377184874,1754268734288,-1605.6,0.00050958,120]
[377184875,1754268734298,-1008.71,0.00050958,120]
[377184876,1754268734307,-400.0,0.00050958,120]
[377184877,1754268734316,-923.19,0.00050958,120]
[377184878,1754268734326,-400.0,0.00050958,120]
[377184879,1754268734335,-400.0,0.00050958,120]
[377184880,1754268734345,-2537.67,0.00050958,120]
[377184881,1754268734355,-425.3,0.00050958,120]
[377184882,1754268734364,-531.95,0.00050958,120]
[377184883,1754268734374,-722.7,0.00050958,120]
[377184884,1754268734383,-400.0,0.00050958,120]
[377184885,1754268734393,-1382.88,0.00050958,120]
[377184886,1754268734402,-455.57,0.00050958,120]
[377184887,1754268734411,-400.0,0.00050958,120]
[377184888,1754268734420,-400.0,0.00050958,120]
[377184889,1754268734429,-400.0,0.00050958,120]
[377184890,1754268734439,-1556.65,0.00050958,120]
[377184891,1754268734448,-400.0,0.00050958,120]
[377184892,1754268734457,-669.47,0.00050958,120]
[377184893,1754268734467,-2962.11,0.00050958,120]
[377184894,1754268734476,-520.555924,0.00050958,120]
[377184895,1754268734485,-772.23,0.00050958,120]
[377184896,1754268734495,-1030.73,0.00050958,120]
[377184897,1754268734504,-400.0,0.00050958,120]
[377184898,1754268734513,-1002.34,0.00050958,120]
[377184899,1754268734523,-400.0,0.00050958,120]
[377184900,1754268734532,-400.0,0.00050958,120]
[377184901,1754268734542,-6910.03,0.00050958,120]
[377184902,1754268734551,-276.991448,0.00050958,120]
[377184903,1754268734561,-450.71,0.00050958,120]
[377184904,1754268734570,-222.89007,0.00050958,120]
[377184905,1754268734579,-520.555924,0.00050958,120]
[377184906,1754268734589,-652.98,0.00050958,120]
[377184907,1754268734598,-400.0,0.00050958,120]
[377184908,1754268734607,-493.79,0.00050958,120]
[377184909,1754268734616,-222.89007,0.00050958,120]
[377184910,1754268734625,-400.0,0.00050958,120]
[377184911,1754268734635,-7390.45,0.00050958,120]
[377184912,1754268734645,-276.991448,0.00050958,120]
[377184913,1754268734654,-550.23,0.00050958,120]
[377184914,1754268734664,-1493.06,0.00050958,120]
[377184915,1754268734673,-400.0,0.00050958,120]
[377184916,1754268734683,-400.0,0.00050958,120]
[377184917,1754268734693,-879.94,0.00050958,120]
[377184918,1754268734705,-400.0,0.00050958,120]
[377184919,1754268734714,-400.0,0.00050958,120]
[377184920,1754268734723,-1569.23,0.00050958,120]
[377184921,1754268734732,-445.41104493,0.00050958,120]
[377184922,1754268734741,-500.44,0.00050958,120]
[377184923,1754268734751,-151.0,0.00050958,90]
[377184924,1754268734760,-558.0,0.00050958,120]
[377184925,1754268734769,-400.0,0.00050958,120]
[377184926,1754268734779,-400.0,0.00050958,120]
[377184927,1754268734788,-986.16,0.00050958,120]
[377184928,1754268734797,-790.99,0.00050958,120]
[377184929,1754268734806,-400.0,0.00050958,120]
[377184930,1754268734816,-400.0,0.00050958,120]
[377184931,1754268734825,-400.0,0.00050958,120]
[377184932,1754268734835,-1060.73,0.00050958,120]
[377184933,1754268734844,-174.594282,0.00050958,120]
[377184934,1754268734853,-400.0,0.00050958,120]
[377184935,1754268734862,-1434.71,0.00050958,120]
[377184936,1754268734872,-668.69,0.00050958,120]
[377184937,1754268734883,-400.0,0.00050958,120]
[377184938,1754268734892,-852.72,0.00050958,120]
[377184939,1754268734901,-400.0,0.00050958,120]
[377184940,1754268734911,-174.594282,0.00050958,120]
[377184941,1754268734921,-607.24,0.00050958,120]
[377184942,1754268734931,-400.0,0.00050958,120]
[377184943,1754268734941,-151.0,0.00050958,120]
[377184944,1754268734951,-435.18,0.00050958,120]
[377184945,1754268734961,-400.0,0.00050958,120]
[377184946,1754268734971,-1703.79,0.00050958,120]
[377184947,1754268734984,-400.0,0.00050958,120]
[377184948,1754268734995,-400.0,0.00050958,120]
[377184949,1754268735007,-406.63551997,0.00050958,120]
[377184950,1754268735019,-400.0,0.00050958,120]
[377184951,1754268735028,-1017.05,0.00050958,120]
[377184952,1754268735039,-841.35,0.00050958,120]
[377184953,1754268735049,-400.0,0.00050958,120]
[377184954,1754268735060,-400.0,0.00050958,120]
[377184955,1754268735069,-400.0,0.00050958,120]
[377184956,1754268735079,-757.28,0.00050958,120]
[377184957,1754268735088,-400.0,0.00050958,120]
[377184958,1754268735098,-995.12,0.00050958,120]
[377184959,1754268735107,-7585.79,0.00050958,120]
[377184960,1754268735116,-1753.62,0.00050958,120]
[377184961,1754268735126,-425.9,0.00050958,120]
[377184962,1754268735137,-400.0,0.00050958,120]
[377184963,1754268735146,-400.0,0.00050958,120]
[377184964,1754268735155,-400.0,0.00050958,120]
[377184965,1754268735164,-400.0,0.00050958,120]
[377184966,1754268735173,-542.0,0.00050958,120]
[377184967,1754268735182,-400.0,0.00050958,120]
[377184968,1754268735191,-1880.01,0.00050958,120]
[377184969,1754268735200,-400.0,0.00050958,120]
[377184970,1754268735209,-400.0,0.00050958,120]
[377184971,1754268735218,-1978.0,0.00050958,14]
[377184972,1754268735227,-510.92,0.00050958,120]
[377184973,1754268735236,-1463.67,0.00050958,120]
[377184974,1754268735245,-600.06,0.00050958,120]
[377184975,1754268735254,-1198.9,0.00050958,120]
[377184976,1754268735263,-583.04,0.00050958,120]
[377184977,1754268735273,-1005.86,0.00050958,120]
[377184978,1754268735282,-2228.26,0.00050958,120]
[377184979,1754268735291,-742.92,0.00050958,120]
[377184980,1754268735300,-445.41104493,0.00050958,120]
[377184981,1754268735310,-741.27,0.00050958,120]
[377184982,1754268735319,-400.0,0.00050958,120]
[377184983,1754268735328,-433.14,0.00050958,120]
[377184984,1754268735338,-1033.18,0.00050958,120]
[377184985,1754268735347,-493.73,0.00050958,120]
[377184986,1754268735357,-400.0,0.00050958,120]
[377184987,1754268735366,-1536.49,0.00050958,120]
[377184988,1754268735375,-501.82850531,0.00050958,120]
[377184989,1754268735386,-586.15,0.00050958,120]
[377184990,1754268735395,-1607.18,0.00050958,120]
[377184991,1754268735405,-729.84,0.00050958,120]
[377184992,1754268735414,-400.0,0.00050958,120]
[377184993,1754268735423,-731.49,0.00050958,120]
[377184994,1754268735433,-400.0,0.00050958,120]
[377184995,1754268735442,-526.52,0.00050958,120]
[377184996,1754268735451,-400.0,0.00050958,120]
[377184997,1754268735461,-400.0,0.00050958,120]
[377184998,1754268735470,-265.80216963,0.00050958,120]
[377184999,1754268735480,-400.0,0.00050958,120]
[377185000,1754268735490,-400.0,0.00050958,120]
[377185001,1754268735499,-400.0,0.00050958,120]
[377185002,1754268735508,-833.33,0.00050958,120]
[377185003,1754268735518,-950.98,0.00050958,120]
[377185004,1754268735527,-400.0,0.00050958,120]
[377185005,1754268735536,-5414.63,0.00050958,120]
[377185006,1754268735546,-1343.31,0.00050958,120]
[377185007,1754268735555,-1184.53,0.00050958,120]
[377185008,1754268735564,-400.0,0.00050958,120]
[377185009,1754268735574,-400.0,0.00050958,120]
[377185010,1754268735584,-206.023043,0.00050958,120]
[377185011,1754268735593,-400.0,0.00050958,120]
[377185012,1754268735602,-4075.46,0.00050958,120]
[377185013,1754268735611,-180.0,0.00050958,120]
[377185014,1754268735620,-1379.69,0.00050958,120]
[377185015,1754268735630,-400.0,0.00050958,120]
[377185016,1754268735640,-445.51,0.00050958,120]
[377185017,1754268735650,-2593.84,0.00050958,120]
[377185018,1754268735660,-411.9,0.00050958,120]
[377185019,1754268735669,-400.0,0.00050958,120]
[377185020,1754268735679,-1206.22,0.00050958,120]
[377185021,1754268735689,-1030.88,0.00050958,120]
[377185022,1754268735703,-833.57,0.00050958,120]
[377185023,1754268735715,-607.02,0.00050958,120]
[377185024,1754268735724,-400.0,0.00050958,16]
[377185025,1754268735733,-1399.31,0.00050958,120]
[377185026,1754268735743,-400.0,0.00050958,120]
[377185027,1754268735752,-538.01,0.00050958,120]
[377185028,1754268735761,-492.98283056,0.00050958,120]
[377185029,1754268735772,-489.04237178,0.00050958,120]
[377185030,1754268735781,-400.0,0.00050958,120]
[377185031,1754268735790,-400.0,0.00050958,120]
[377185032,1754268735800,-2840.83,0.00050958,120]
[377185033,1754268735810,-400.0,0.00050958,120]
[377185034,1754268735819,-803.92,0.00050958,120]
[377185035,1754268735828,-400.0,0.00050958,120]
[377185036,1754268735837,-403.21,0.00050958,120]
[377185037,1754268735846,-475.93,0.00050958,120]
[377185038,1754268735856,-400.0,0.00050958,120]
[377185039,1754268735865,-400.0,0.00050958,120]
[377185040,1754268735875,-1006.17,0.00050958,120]
[377185041,1754268735886,-400.0,0.00050958,120]
[377185042,1754268735896,-400.0,0.00050958,120]
[377185043,1754268735905,-400.0,0.00050958,120]
[377185044,1754268735915,-247.77012385,0.00050958,120]
[377185045,1754268735924,-400.0,0.00050958,120]
[377185046,1754268735934,-621.49,0.00050958,120]
[377185047,1754268735943,-329.99489869,0.00050958,120]
[377185048,1754268735953,-758.57,0.00050958,120]
[377185049,1754268735963,-435.00819379,0.00050958,120]
[377185050,1754268735973,-1049.57,0.00050958,120]
[377185051,1754268735982,-400.0,0.00050958,120]
[377185052,1754268735992,-400.0,0.00050958,120]
[377185053,1754268736002,-876.85,0.00050958,120]
[377185054,1754268736011,-1350.55,0.00050958,120]
[377185055,1754268736022,-400.0,0.00050958,120]
[377185056,1754268736031,-1044.86,0.00050958,120]
[377185057,1754268736041,-496.26,0.00050958,120]
[377185058,1754268736050,-400.0,0.00050958,120]
[377185059,1754268736060,-801.02,0.00050958,120]
[377185060,1754268736069,-400.0,0.00050958,120]
[377185061,1754268736079,-400.0,0.00050958,120]
[377185062,1754268736088,-400.0,0.00050958,120]
[377185063,1754268736098,-400.0,0.00050958,120]
[377185064,1754268736107,-400.0,0.00050958,120]
[377185065,1754268736117,-563.95,0.00050958,120]
[377185066,1754268736126,-400.0,0.00050958,120]
[377185067,1754268736137,-2403.7,0.00050958,120]
[377185068,1754268736146,-400.0,0.00050958,120]
[377185069,1754268736156,-400.0,0.00050958,120]
[377185070,1754268736165,-688.74,0.00050958,120]
[377185071,1754268736175,-400.0,0.00050958,120]
[377185072,1754268736185,-1799.51,0.00050958,120]
[377185073,1754268736195,-1965.73,0.00050958,120]
[377185074,1754268736204,-400.0,0.00050958,120]
[377185075,1754268736214,-400.0,0.00050958,120]
[377185076,1754268736224,-400.0,0.00050958,120]
[377185077,1754268736233,-400.0,0.00050958,120]
[377185078,1754268736243,-551.25622991,0.00050958,120]
[377185079,1754268736252,-1094.60266999,0.00050958,120]
[377185080,1754268736262,-326.13229496,0.00050959,120]
[377185081,1754268736271,-171.02414498,0.0005096,120]
[377185082,1754268736280,-515.0,0.00050961,28]
[377185083,1754268736290,-1562.45253911,0.00050961,120]
[377185084,1754268736299,-342.71760471,0.00050962,120]
[377185085,1754268736309,-743.78711568,0.00050963,120]
[377185086,1754268736318,-786.44948424,0.00050965,120]
[377185087,1754268736328,-1562.45253911,0.00050967,120]
[377185088,1754268736337,-3990.85406859,0.00050968,120]
[377185089,1754268736347,-165.37686899,0.00050969,120]
[377185090,1754268736356,-186.52373497,0.0005097,120]
[377185091,1754268736366,-1142.39201565,0.00050972,120]
[377185092,1754268736375,-326.13229496,0.00050972,120]
[377185093,1754268736385,-254.00537535,0.00050972,120]
[377185094,1754268736394,-1142.39201565,0.00050972,120]
[377185095,1754268736404,-171.02414498,0.00050973,120]
[377185096,1754268736413,-342.71760471,0.00050974,120]
[377185097,1754268736423,-308.02826665,0.00050975,120]
[377185098,1754268736432,-254.00537535,0.00050975,120]
[377185099,1754268736441,-551.25622991,0.00050976,120]
[377185100,1754268736450,-1837.5207663,0.00050977,120]
[377185101,1754268736460,-359.89699146,0.00050979,120]
[377185102,1754268736471,-386.18337485,0.00050981,120]
[377185103,1754268736480,-1196.43849887,0.00050983,120]
[377185104,1754268736489,-308.02826665,0.00050983,120]
[377185105,1754268736499,-254.00537535,0.00050984,120]
[377185106,1754268736508,-57868.61255851,0.00050984,120]
[377185107,1754268736725,-150.0,0.00050986,7]
[377185108,1754268736735,-3990.85406859,0.00050987,120]
[377185109,1754268736744,-359.89699146,0.00050987,120]
[377185110,1754268736754,-223.13613472,0.00050988,120]
[377185111,1754268736764,-342.71760471,0.00050988,120]
[377185112,1754268736776,-57868.61255851,0.00050989,120]
[377185113,1754268736786,-3990.85406859,0.0005099,120]
[377185114,1754268736796,-1094.60266999,0.00050991,120]
[377185115,1754268736806,-728.35822835,0.00050991,120]
[377185116,1754268736817,-5208.17513029,0.00050991,120]
[377185117,1754268736827,-1837.5207663,0.00050992,120]
[377185118,1754268736839,-27621.8845658,0.00050992,2]
[377185119,1754268736851,-17360.58376757,0.00050994,120]
[377185120,1754268736862,-743.78711568,0.00050994,120]
[377185121,1754268736871,-5587.04395173,0.00050994,120]
[377185122,1754268736884,-177.82814965,0.00050995,120]
[377185123,1754268736893,-1837.5207663,0.00050995,120]
[377185124,1754268736903,-17360.58376757,0.00050996,120]
[377185125,1754268736913,-218.50746853,0.00050996,120]
[377185126,1754268736924,-151.0,0.00050999,120]
[377185127,1754268736933,-151.0,0.00050999,120]
[377185128,1754268736943,-282.737341,0.00050999,120]
[377185129,1754268736952,-151.0,0.00050999,120]
[377185130,1754268736962,-282.737341,0.00050999,120]
[377185131,1754268736971,-151.0,0.00050999,120]
[377185132,1754268736980,-219.551219,0.00050999,120]
[377185133,1754268736990,-219.551219,0.00050999,120]
[377185134,1754268736999,-286.524899,0.00050999,120]
[377185135,1754268737010,-286.524899,0.00050999,120]
[377185136,1754268737019,-177.237494,0.00050999,120]
[377185137,1754268737029,-177.237494,0.00050999,120]
[377185138,1754268737038,-855.13,0.00050999,120]
[377185139,1754268737048,-855.13,0.00050999,120]
[377185140,1754268737058,-855.13,0.00050999,120]
[377185141,1754268737068,-151.0,0.00050999,120]
[377185142,1754268737077,-151.0,0.00050999,120]
[377185143,1754268737087,-151.0,0.00050999,120]
[377185144,1754268737096,-151.0,0.00050999,120]
[377185145,1754268737106,-151.0,0.00050999,120]
[377185146,1754268737116,-151.0,0.00050999,120]
[377185147,1754268737125,-151.0,0.00050999,120]
[377185148,1754268737137,-151.0,0.00050999,120]
[377185149,1754268737146,-151.0,0.00050999,120]
[377185150,1754268737155,-151.0,0.00050999,120]
[377185151,1754268737165,-151.0,0.00050999,120]
[377185152,1754268737174,-151.0,0.00050999,120]
[377185153,1754268737184,-151.0,0.00050999,120]
[377185154,1754268737194,-151.0,0.00050999,120]
[377185155,1754268737204,-151.0,0.00050999,120]
[377185156,1754268737213,-174.07181071,0.00050999,120]
[377185157,1754268737222,-151.0,0.00050999,120]
[377185158,1754268737232,-151.0,0.00050999,120]
[377185159,1754268737242,-156.587,0.00050999,120]
[377185160,1754268737251,-183.49471613,0.00050999,120]
[377185161,1754268737260,-300.0,0.00050999,120]
[377185162,1754268737270,-300.0,0.00050999,120]
[377185163,1754268737279,-300.0,0.00050999,120]
[377185164,1754268737289,-300.0,0.00050999,120]
[377185165,1754268737298,-300.0,0.00050999,120]
[377185166,1754268737308,-262.9180953,0.00050999,120]
[377185167,1754268737317,-200.0,0.00050999,120]
[377185168,1754268737327,-500.0,0.00050999,120]
[377185169,1754268737336,-151.0,0.00050999,120]
[377185170,1754268737346,-500.0,0.00050999,120]
[377185171,1754268737356,-151.0,0.00050999,120]
[377185172,1754268737365,-500.0,0.00050999,120]
[377185173,1754268737375,-151.0,0.00050999,120]
[377185174,1754268737386,-151.0,0.00050999,120]
[377185175,1754268737396,-500.0,0.00050999,120]
[377185176,1754268737405,-151.0,0.00050999,120]
[377185177,1754268737415,-151.0,0.00050999,120]
[377185178,1754268737424,-500.0,0.00050999,120]
[377185179,1754268737434,-151.0,0.00050999,120]
[377185180,1754268737444,-151.0,0.00050999,120]
[377185181,1754268737453,-151.0,0.00050999,120]
[377185182,1754268737463,-500.0,0.00050999,120]
[377185183,1754268737472,-151.0,0.00050999,120]
[377185184,1754268737482,-151.0,0.00050999,120]
[377185185,1754268737491,-151.0,0.00050999,120]
[377185186,1754268737501,-500.0,0.00050999,120]
[377185187,1754268737510,-151.0,0.00050999,120]
[377185188,1754268737520,-151.0,0.00050999,120]
[377185189,1754268737529,-500.0,0.00050999,120]
[377185190,1754268737539,-151.0,0.00050999,120]
[377185191,1754268737548,-500.0,0.00050999,120]
[377185192,1754268737558,-170.42054283,0.00050999,120]
[377185193,1754268737568,-151.0,0.00050999,120]
[377185194,1754268737578,-500.0,0.00050999,120]
[377185195,1754268737587,-151.0,0.00050999,120]
[377185196,1754268737596,-172.90122288,0.00050999,120]
[377185197,1754268737606,-500.0,0.00050999,120]
[377185198,1754268737615,-500.0,0.00050999,120]
[377185199,1754268737624,-500.0,0.00050999,120]
[377185200,1754268737637,-500.0,0.00050999,120]
[377185201,1754268737646,-600.0,0.00050999,120]
[377185202,1754268737655,-3888.0,0.00050999,120]
[377185203,1754268737664,-500.0,0.00050999,120]